[Event "Live Chess"]
[Site "Chess.com"]
[Date "2023.05.20"]
[Round "-"]
[White "Olisingapore"]
[Black "Delacorta"]
[Result "1/2-1/2"]
[WhiteElo "1928"]
[BlackElo "1408"]
[TimeControl "300"]
[EndTime "10:48:13 PDT"]
[Termination "Game drawn by repetition"]

1. d4 {[%clk 0:04:57.1]} 1... e6 {[%clk 0:04:58.9]} 2. c4 {[%clk 0:04:56.5]}
2... f5 {[%clk 0:04:58]} 3. g3 {[%clk 0:04:54.8]} 3... Nf6 {[%clk 0:04:57]} 4.
Bg2 {[%clk 0:04:54.3]} 4... c6 {[%clk 0:04:56.4]} 5. Nc3 {[%clk 0:04:53.8]} 5...
d5 {[%clk 0:04:55.1]} 6. Nf3 {[%clk 0:04:53.4]} 6... Bd6 {[%clk 0:04:52.1]} 7.
Qd3 {[%clk 0:04:52]} 7... O-O {[%clk 0:04:50.1]} 8. O-O {[%clk 0:04:51]} 8...
Nbd7 {[%clk 0:04:41.9]} 9. Re1 {[%clk 0:04:49.8]} 9... Ne4 {[%clk 0:04:39.1]}
10. Nh4 {[%clk 0:04:42.6]} 10... Be7 {[%clk 0:04:01.3]} 11. Nf3 {[%clk
0:04:30.5]} 11... Ndf6 {[%clk 0:03:56.5]} 12. Ne5 {[%clk 0:04:25.1]} 12... Bd7
{[%clk 0:03:30.9]} 13. c5 {[%clk 0:04:15.3]} 13... Qc7 {[%clk 0:03:19.4]} 14.
Bf4 {[%clk 0:04:12.4]} 14... Qd8 {[%clk 0:03:12.4]} 15. b4 {[%clk 0:04:05.9]}
15... Nh5 {[%clk 0:03:04.2]} 16. Be3 {[%clk 0:03:42.9]} 16... Nhf6 {[%clk
0:03:02.7]} 17. f3 {[%clk 0:03:38.3]} 17... Nxc3 {[%clk 0:02:46.7]} 18. Qxc3
{[%clk 0:03:38.2]} 18... Be8 {[%clk 0:02:34.9]} 19. a3 {[%clk 0:03:27.1]} 19...
Rc8 {[%clk 0:02:32.1]} 20. Bg5 {[%clk 0:03:15.3]} 20... b6 {[%clk 0:02:30.8]}
21. Rab1 {[%clk 0:03:08.3]} 21... Nd7 {[%clk 0:02:18.1]} 22. Nxd7 {[%clk
0:03:04.4]} 22... Bxd7 {[%clk 0:02:10.2]} 23. Bf4 {[%clk 0:03:02.7]} 23... Bf6
{[%clk 0:01:58.2]} 24. e3 {[%clk 0:02:47.1]} 24... g5 {[%clk 0:01:55.9]} 25. Bd6
{[%clk 0:02:42.8]} 25... Be7 {[%clk 0:01:55]} 26. Be5 {[%clk 0:02:38.1]} 26...
Bf6 {[%clk 0:01:53.1]} 27. Bd6 {[%clk 0:02:36.3]} 27... Be7 {[%clk 0:01:52.4]}
28. e4 {[%clk 0:02:32.3]} 28... Bxd6 {[%clk 0:01:49]} 29. cxd6 {[%clk
0:02:32.1]} 29... Qf6 {[%clk 0:01:41.3]} 30. e5 {[%clk 0:02:28.8]} 30... Qf7
{[%clk 0:01:40]} 31. Qd2 {[%clk 0:02:18]} 31... f4 {[%clk 0:01:38.3]} 32. g4
{[%clk 0:02:02.8]} 32... h5 {[%clk 0:01:34.6]} 33. h3 {[%clk 0:02:01]} 33...
hxg4 {[%clk 0:01:32.1]} 34. hxg4 {[%clk 0:01:59.9]} 34... Qh7 {[%clk 0:01:27.3]}
35. Kf2 {[%clk 0:01:39.5]} 35... Qh2 {[%clk 0:01:21.6]} 36. Ke2 {[%clk
0:01:38.7]} 36... Qxg2+ {[%clk 0:01:19]} 37. Kd1 {[%clk 0:01:35.4]} 37... Qxf3+
{[%clk 0:01:12.7]} 38. Re2 {[%clk 0:01:31.7]} 38... Rf7 {[%clk 0:01:05.4]} 39.
Qc2 {[%clk 0:01:16.4]} 39... Qxg4 {[%clk 0:00:54.8]} 40. Kc1 {[%clk 0:01:11.1]}
40... Rh7 {[%clk 0:00:52.6]} 41. Rg2 {[%clk 0:01:06.3]} 41... Qf5 {[%clk
0:00:42.6]} 42. Qxf5 {[%clk 0:01:00.4]} 42... exf5 {[%clk 0:00:42.5]} 43. Rxg5+
{[%clk 0:00:59.4]} 43... Rg7 {[%clk 0:00:38.8]} 44. Rxg7+ {[%clk 0:00:55.5]}
44... Kxg7 {[%clk 0:00:37.6]} 45. Kd2 {[%clk 0:00:55]} 45... Kf7 {[%clk
0:00:36.6]} 46. Rf1 {[%clk 0:00:54.2]} 46... Ke6 {[%clk 0:00:35.2]} 47. Rxf4
{[%clk 0:00:53.4]} 47... Rg8 {[%clk 0:00:33.8]} 48. Ke3 {[%clk 0:00:41.3]} 48...
Rg3+ {[%clk 0:00:32.9]} 49. Rf3 {[%clk 0:00:38.7]} 49... Rxf3+ {[%clk 0:00:30]}
50. Kxf3 {[%clk 0:00:38.6]} 50... Be8 {[%clk 0:00:28.6]} 51. Kf4 {[%clk
0:00:38.1]} 51... Bg6 {[%clk 0:00:26.9]} 52. a4 {[%clk 0:00:36.3]} 52... a6
{[%clk 0:00:24.8]} 53. Kg5 {[%clk 0:00:31.3]} 53... Bh7 {[%clk 0:00:23]} 54. Kf4
{[%clk 0:00:30.9]} 54... Bg6 {[%clk 0:00:21.4]} 55. Ke3 {[%clk 0:00:21]} 55...
Bh5 {[%clk 0:00:20.7]} 56. Kf4 {[%clk 0:00:17.1]} 56... Bd1 {[%clk 0:00:19.6]}
57. a5 {[%clk 0:00:15.6]} 57... Bb3 {[%clk 0:00:17.9]} 58. Ke3 {[%clk
0:00:13.2]} 58... Bc2 {[%clk 0:00:17.1]} 59. d7 {[%clk 0:00:12.5]} 59... Kxd7
{[%clk 0:00:15]} 60. Kf4 {[%clk 0:00:12.2]} 60... Ke6 {[%clk 0:00:14.2]} 61. Kg5
{[%clk 0:00:11]} 61... bxa5 {[%clk 0:00:13.3]} 62. bxa5 {[%clk 0:00:09.7]} 62...
Bb3 {[%clk 0:00:10.9]} 63. Kf4 {[%clk 0:00:09.3]} 63... Bc2 {[%clk 0:00:09.4]}
64. Kg5 {[%clk 0:00:08.3]} 64... Be4 {[%clk 0:00:09.3]} 65. Kf4 {[%clk
0:00:07.6]} 65... Bf3 {[%clk 0:00:09.2]} 66. Ke3 {[%clk 0:00:07]} 66... Bh5
{[%clk 0:00:08.7]} 67. Kf4 {[%clk 0:00:06.7]} 67... Bg6 {[%clk 0:00:08.6]} 68.
Kg5 {[%clk 0:00:06.2]} 68... Bf7 {[%clk 0:00:07.7]} 69. Kf4 {[%clk 0:00:05.8]}
69... Be8 {[%clk 0:00:07.6]} 70. Kg5 {[%clk 0:00:05.4]} 70... Bd7 {[%clk
0:00:07.5]} 71. Kf4 {[%clk 0:00:05]} 71... Bc8 {[%clk 0:00:07.4]} 72. Ke3 {[%clk
0:00:04.5]} 72... Bb7 {[%clk 0:00:07.3]} 73. Kf4 {[%clk 0:00:04.2]} 73... Kd7
{[%clk 0:00:06.7]} 74. Ke3 {[%clk 0:00:03.8]} 74... Ke6 {[%clk 0:00:06.6]} 75.
Kf4 {[%clk 0:00:03.2]} 75... Bc8 {[%clk 0:00:06.5]} 76. Kg5 {[%clk 0:00:02.6]}
76... Bd7 {[%clk 0:00:06.4]} 77. Kf4 {[%clk 0:00:02.2]} 77... Be8 {[%clk
0:00:06.3]} 78. Kg5 {[%clk 0:00:01.7]} 78... Bh5 {[%clk 0:00:06.1]} 79. Kf4
{[%clk 0:00:01.4]} 79... Be2 {[%clk 0:00:05.5]} 80. Kg5 {[%clk 0:00:01.3]} 80...
Bb5 {[%clk 0:00:05]} 81. Kf4 {[%clk 0:00:01.2]} 81... Bc4 {[%clk 0:00:04.6]} 82.
Kg5 {[%clk 0:00:01]} 82... Bb5 {[%clk 0:00:04.5]} 83. Kf4 {[%clk 0:00:00.7]}
83... Bc4 {[%clk 0:00:04.4]} 84. Kg5 {[%clk 0:00:00.4]} 84... Bb5 {[%clk
0:00:04.3]} 1/2-1/2

[Event "Live Chess"]
[Site "Chess.com"]
[Date "2023.05.20"]
[Round "-"]
[White "CheckThis4"]
[Black "Alan_Richardson"]
[Result "1-0"]
[WhiteElo "2546"]
[BlackElo "1674"]
[TimeControl "300"]
[EndTime "10:48:18 PDT"]
[Termination "CheckThis4 won on time"]

1. d4 {[%clk 0:04:57.4]} 1... Nf6 {[%clk 0:04:57.6]} 2. Nc3 {[%clk 0:04:54.8]}
2... c5 {[%clk 0:04:43.4]} 3. d5 {[%clk 0:04:53.4]} 3... e6 {[%clk 0:04:40.5]}
4. e4 {[%clk 0:04:51.4]} 4... exd5 {[%clk 0:04:37.8]} 5. e5 {[%clk 0:04:49.9]}
5... Ne4 {[%clk 0:04:18.2]} 6. Nxd5 {[%clk 0:04:37.7]} 6... d6 {[%clk
0:04:12.4]} 7. Nf3 {[%clk 0:04:34]} 7... Nc6 {[%clk 0:04:03]} 8. Bd3 {[%clk
0:04:21.3]} 8... f5 {[%clk 0:03:55.9]} 9. exf6 {[%clk 0:04:07.3]} 9... Nxf6
{[%clk 0:03:52.6]} 10. Bg5 {[%clk 0:03:55.4]} 10... Be7 {[%clk 0:03:50.8]} 11.
Nxe7 {[%clk 0:03:31.7]} 11... Qxe7+ {[%clk 0:03:46.9]} 12. Be2 {[%clk
0:03:17.3]} 12... O-O {[%clk 0:03:39.5]} 13. O-O {[%clk 0:03:15.6]} 13... d5
{[%clk 0:03:25.9]} 14. Bxf6 {[%clk 0:03:10.5]} 14... Qxf6 {[%clk 0:03:17.8]} 15.
Qxd5+ {[%clk 0:03:07]} 15... Be6 {[%clk 0:03:16.5]} 16. Qxc5 {[%clk 0:03:03.5]}
16... Qxb2 {[%clk 0:03:05.9]} 17. Rab1 {[%clk 0:02:59]} 17... Qxa2 {[%clk
0:02:59.9]} 18. Rxb7 {[%clk 0:02:55.4]} 18... Rac8 {[%clk 0:02:58.3]} 19. Bd3
{[%clk 0:02:39.5]} 19... Qd5 {[%clk 0:02:41.1]} 20. Qxd5 {[%clk 0:02:14.3]}
20... Bxd5 {[%clk 0:02:39.9]} 21. Rd7 {[%clk 0:01:47.7]} 21... Nb4 {[%clk
0:02:04.7]} 22. Rb1 {[%clk 0:01:31.3]} 22... a5 {[%clk 0:01:24.7]} 23. Rxb4
{[%clk 0:01:25.6]} 23... Bxf3 {[%clk 0:01:15]} 24. Rbd4 {[%clk 0:01:14.3]} 24...
Bg4 {[%clk 0:01:08.2]} 25. Rxg4 {[%clk 0:01:11.7]} 25... g6 {[%clk 0:00:58]} 26.
h4 {[%clk 0:01:10.2]} 26... Rb8 {[%clk 0:00:51.1]} 27. h5 {[%clk 0:01:07.6]}
27... Rf6 {[%clk 0:00:26.4]} 28. hxg6 {[%clk 0:01:03.6]} 28... hxg6 {[%clk
0:00:24.8]} 29. Rxg6+ {[%clk 0:00:56.3]} 29... Rxg6 {[%clk 0:00:23.1]} 30. Bxg6
{[%clk 0:00:56.2]} 30... Ra8 {[%clk 0:00:14.1]} 31. Be4 {[%clk 0:00:54.1]} 31...
Ra6 {[%clk 0:00:11.6]} 32. Bb7 {[%clk 0:00:52.1]} 32... Rf6 {[%clk 0:00:05.9]}
33. Bd5+ {[%clk 0:00:50]} 33... Kf8 {[%clk 0:00:03.5]} 34. Ra7 {[%clk 0:00:49]}
1-0

[Event "Live Chess"]
[Site "Chess.com"]
[Date "2023.05.20"]
[Round "-"]
[White "JoeyCage"]
[Black "CheckString"]
[Result "1-0"]
[WhiteElo "2296"]
[BlackElo "1259"]
[TimeControl "300"]
[EndTime "10:48:19 PDT"]
[Termination "JoeyCage won on time"]

1. e4 {[%clk 0:04:57.2]} 1... c6 {[%clk 0:04:59.3]} 2. d4 {[%clk 0:04:56]} 2...
d5 {[%clk 0:04:58.7]} 3. e5 {[%clk 0:04:55.3]} 3... c5 {[%clk 0:04:57.2]} 4.
dxc5 {[%clk 0:04:54]} 4... Nc6 {[%clk 0:04:56.4]} 5. f4 {[%clk 0:04:36.1]} 5...
Nh6 {[%clk 0:04:54.9]} 6. Nf3 {[%clk 0:04:34.8]} 6... Bg4 {[%clk 0:04:52.8]} 7.
Be2 {[%clk 0:04:31.4]} 7... e6 {[%clk 0:04:36.5]} 8. Be3 {[%clk 0:04:29]} 8...
Nf5 {[%clk 0:04:31.4]} 9. Bf2 {[%clk 0:04:25]} 9... g5 {[%clk 0:04:02.3]} 10.
Nxg5 {[%clk 0:04:20.1]} 10... Bxe2 {[%clk 0:04:01.6]} 11. Qxe2 {[%clk
0:04:18.6]} 11... Bh6 {[%clk 0:03:54.4]} 12. O-O {[%clk 0:04:13.2]} 12... Bxg5
{[%clk 0:03:52.7]} 13. fxg5 {[%clk 0:04:11.9]} 13... Qxg5 {[%clk 0:03:52.6]} 14.
Nd2 {[%clk 0:04:08.6]} 14... Rg8 {[%clk 0:03:49.9]} 15. g3 {[%clk 0:03:59.3]}
15... h5 {[%clk 0:03:28.2]} 16. Nf3 {[%clk 0:03:57.1]} 16... Qg7 {[%clk
0:03:21.9]} 17. Kh1 {[%clk 0:03:53.1]} 17... h4 {[%clk 0:03:19.7]} 18. Rg1
{[%clk 0:03:51.8]} 18... O-O-O {[%clk 0:03:06.1]} 19. Rae1 {[%clk 0:03:45.3]}
19... hxg3 {[%clk 0:02:58.4]} 20. Bxg3 {[%clk 0:03:40.5]} 20... Qh6 {[%clk
0:02:41.1]} 21. Qf2 {[%clk 0:03:36.7]} 21... Rg6 {[%clk 0:02:22.4]} 22. Nh4
{[%clk 0:03:22.3]} 22... Nxh4 {[%clk 0:01:55.7]} 23. Bxh4 {[%clk 0:03:19.9]}
23... Rdg8 {[%clk 0:01:52.5]} 24. Rxg6 {[%clk 0:03:17.9]} 24... Rxg6 {[%clk
0:01:52.4]} 25. Bg3 {[%clk 0:03:16.4]} 25... Ne7 {[%clk 0:01:42.4]} 26. Bf4
{[%clk 0:03:12]} 26... Qg7 {[%clk 0:01:32.3]} 27. Rg1 {[%clk 0:03:09.4]} 27...
Nf5 {[%clk 0:01:11.3]} 28. Rxg6 {[%clk 0:02:58.5]} 28... Qxg6 {[%clk 0:01:11.2]}
29. Qg2 {[%clk 0:02:56.9]} 29... Kc7 {[%clk 0:01:02.8]} 30. Qxg6 {[%clk
0:02:54.7]} 30... fxg6 {[%clk 0:01:02.7]} 31. c3 {[%clk 0:02:53.4]} 31... Kc6
{[%clk 0:01:01.9]} 32. Kg2 {[%clk 0:02:52]} 32... a5 {[%clk 0:01:01.3]} 33. b4
{[%clk 0:02:50.4]} 33... axb4 {[%clk 0:00:58]} 34. cxb4 {[%clk 0:02:49.4]} 34...
Kb5 {[%clk 0:00:57.6]} 35. Bd2 {[%clk 0:02:46.4]} 35... Kc4 {[%clk 0:00:46.5]}
36. Kf3 {[%clk 0:02:44.7]} 36... Kd3 {[%clk 0:00:25.4]} 37. Be1 {[%clk
0:02:42.3]} 37... Nd4+ {[%clk 0:00:19]} 38. Kf4 {[%clk 0:02:37.1]} 38... Ke2
{[%clk 0:00:15.8]} 39. Bh4 {[%clk 0:02:33.7]} 39... Nf3 {[%clk 0:00:14.4]} 40.
Bg3 {[%clk 0:02:29]} 40... Nd4 {[%clk 0:00:08.8]} 41. a4 {[%clk 0:02:27.6]}
41... Nf5 {[%clk 0:00:08.4]} 42. b5 {[%clk 0:02:26]} 42... Nxg3 {[%clk
0:00:07.8]} 43. hxg3 {[%clk 0:02:23.4]} 43... d4 {[%clk 0:00:07.4]} 44. c6
{[%clk 0:02:22.5]} 44... d3 {[%clk 0:00:07.1]} 45. cxb7 {[%clk 0:02:20]} 45...
d2 {[%clk 0:00:06.3]} 46. b8=Q {[%clk 0:02:19]} 46... d1=Q {[%clk 0:00:06.2]}
47. Qd6 {[%clk 0:02:13.9]} 47... Qxa4+ {[%clk 0:00:03]} 48. Kg5 {[%clk 0:02:09]}
48... Kf3 {[%clk 0:00:02.7]} 49. Qd3+ {[%clk 0:02:04.4]} 49... Kg2 {[%clk
0:00:01.8]} 50. Kxg6 {[%clk 0:02:02.3]} 50... Qg4+ {[%clk 0:00:00.7]} 51. Kf6
{[%clk 0:02:00.8]} 51... Qf5+ {[%clk 0:00:00.3]} 52. Qxf5 {[%clk 0:01:59.5]} 1-0

[Event "Live Chess"]
[Site "Chess.com"]
[Date "2023.05.20"]
[Round "-"]
[White "wot-not"]
[Black "yeetpizza74"]
[Result "1-0"]
[WhiteElo "1463"]
[BlackElo "448"]
[TimeControl "300"]
[EndTime "10:48:19 PDT"]
[Termination "wot-not won by checkmate"]

1. e4 {[%clk 0:04:56.8]} 1... c6 {[%clk 0:04:58]} 2. f4 {[%clk 0:04:56]} 2... d5
{[%clk 0:04:55.7]} 3. e5 {[%clk 0:04:54.5]} 3... f5 {[%clk 0:04:51.7]} 4. Nf3
{[%clk 0:04:53.8]} 4... e6 {[%clk 0:04:49.4]} 5. d4 {[%clk 0:04:53.5]} 5... Nd7
{[%clk 0:04:43.4]} 6. c4 {[%clk 0:04:52.8]} 6... dxc4 {[%clk 0:04:41.6]} 7. Bxc4
{[%clk 0:04:51.2]} 7... c5 {[%clk 0:04:39.6]} 8. Bxe6 {[%clk 0:04:50.3]} 8...
cxd4 {[%clk 0:04:35.3]} 9. O-O {[%clk 0:04:48.1]} 9... Nc5 {[%clk 0:04:24.6]}
10. Bxg8 {[%clk 0:04:41.9]} 10... Rxg8 {[%clk 0:04:21.3]} 11. Qxd4 {[%clk
0:04:39.3]} 11... Ne6 {[%clk 0:04:07.1]} 12. Qxd8+ {[%clk 0:04:36.5]} 12... Nxd8
{[%clk 0:04:05.3]} 13. Nc3 {[%clk 0:04:34]} 13... Be6 {[%clk 0:03:56.1]} 14. Nb5
{[%clk 0:04:29.4]} 14... Bd7 {[%clk 0:03:45.3]} 15. Nc7+ {[%clk 0:04:27.2]}
15... Ke7 {[%clk 0:03:38.6]} 16. Nxa8 {[%clk 0:04:26.2]} 16... Bc6 {[%clk
0:03:35.1]} 17. Nc7 {[%clk 0:04:23.8]} 17... Bxf3 {[%clk 0:03:31.1]} 18. Rxf3
{[%clk 0:04:22.4]} 18... Kd7 {[%clk 0:03:29.5]} 19. Nd5 {[%clk 0:04:20.5]} 19...
Ne6 {[%clk 0:03:18.1]} 20. Bd2 {[%clk 0:04:18.5]} 20... Kc6 {[%clk 0:03:13.1]}
21. Nb4+ {[%clk 0:04:14.9]} 21... Bxb4 {[%clk 0:03:07.2]} 22. Bxb4 {[%clk
0:04:13.7]} 22... Nd4 {[%clk 0:03:03.3]} 23. Rc1+ {[%clk 0:04:08.7]} 23... Kd5
{[%clk 0:02:55.7]} 24. Rd3 {[%clk 0:04:07.2]} 24... Ke4 {[%clk 0:02:47]} 25.
Rxd4+ {[%clk 0:03:53.5]} 25... Kxd4 {[%clk 0:02:43.3]} 26. Rd1+ {[%clk
0:03:49.6]} 26... Kc4 {[%clk 0:02:41.2]} 27. Ba3 {[%clk 0:03:45]} 27... h6
{[%clk 0:02:35.2]} 28. Rd7 {[%clk 0:03:43.7]} 28... g5 {[%clk 0:02:31.5]} 29. e6
{[%clk 0:03:40.5]} 29... Re8 {[%clk 0:02:27.6]} 30. e7 {[%clk 0:03:39.1]} 30...
gxf4 {[%clk 0:02:25.1]} 31. Rd8 {[%clk 0:03:38.1]} 31... Rxe7 {[%clk 0:02:22]}
32. Bxe7 {[%clk 0:03:36.2]} 32... h5 {[%clk 0:02:16.8]} 33. Kf2 {[%clk
0:03:34.4]} 33... h4 {[%clk 0:02:12.7]} 34. Kf3 {[%clk 0:03:33.6]} 34... h3
{[%clk 0:02:10.8]} 35. gxh3 {[%clk 0:03:32.3]} 35... Kb5 {[%clk 0:02:09.6]} 36.
h4 {[%clk 0:03:31.6]} 36... Kc6 {[%clk 0:02:08.2]} 37. h5 {[%clk 0:03:31]} 37...
Kc7 {[%clk 0:02:06.6]} 38. h6 {[%clk 0:03:30.3]} 38... Kc6 {[%clk 0:02:05.5]}
39. h7 {[%clk 0:03:29.8]} 39... b5 {[%clk 0:02:04.8]} 40. h8=Q {[%clk
0:03:29.3]} 40... a5 {[%clk 0:02:03.9]} 41. Qc3+ {[%clk 0:03:28]} 41... Kb6
{[%clk 0:02:01.9]} 42. Rb8+ {[%clk 0:03:26.4]} 42... Ka6 {[%clk 0:01:58.5]} 43.
Qc6+ {[%clk 0:03:24.9]} 43... Ka7 {[%clk 0:01:56.6]} 44. Qb7# {[%clk 0:03:24.4]}
1-0

[Event "Live Chess"]
[Site "Chess.com"]
[Date "2023.05.20"]
[Round "-"]
[White "AttackingSnowLeopard"]
[Black "Mikhail_Golubev"]
[Result "1-0"]
[WhiteElo "2120"]
[BlackElo "2526"]
[TimeControl "300"]
[EndTime "10:48:28 PDT"]
[Termination "AttackingSnowLeopard won on time"]

1. d4 {[%clk 0:04:56.7]} 1... g6 {[%clk 0:04:57.7]} 2. c4 {[%clk 0:04:55.1]}
2... Bg7 {[%clk 0:04:57.1]} 3. Nc3 {[%clk 0:04:53.3]} 3... d6 {[%clk 0:04:56.6]}
4. e4 {[%clk 0:04:52.1]} 4... Nf6 {[%clk 0:04:55.9]} 5. Be2 {[%clk 0:04:51.1]}
5... Nbd7 {[%clk 0:04:51.7]} 6. Nf3 {[%clk 0:04:49.2]} 6... e5 {[%clk
0:04:47.6]} 7. O-O {[%clk 0:04:47.2]} 7... O-O {[%clk 0:04:44.2]} 8. Re1 {[%clk
0:04:45.4]} 8... Re8 {[%clk 0:04:41]} 9. Bf1 {[%clk 0:04:43.7]} 9... c6 {[%clk
0:04:40]} 10. d5 {[%clk 0:04:33.2]} 10... cxd5 {[%clk 0:04:34]} 11. cxd5 {[%clk
0:04:31.2]} 11... Nc5 {[%clk 0:03:43.5]} 12. b4 {[%clk 0:04:04.2]} 12... Na6
{[%clk 0:03:42.4]} 13. a3 {[%clk 0:04:01.1]} 13... Bd7 {[%clk 0:03:41.1]} 14.
Bb5 {[%clk 0:03:48.6]} 14... Rc8 {[%clk 0:03:38.4]} 15. Bxd7 {[%clk 0:03:41.6]}
15... Qxd7 {[%clk 0:03:38.3]} 16. Qd3 {[%clk 0:03:40.5]} 16... Nh5 {[%clk
0:03:08.3]} 17. Nb5 {[%clk 0:03:22.8]} 17... Nf4 {[%clk 0:02:59.4]} 18. Bxf4
{[%clk 0:03:19.2]} 18... exf4 {[%clk 0:02:59.3]} 19. Rac1 {[%clk 0:03:18]} 19...
Nc7 {[%clk 0:02:40.8]} 20. Nxc7 {[%clk 0:02:53.3]} 20... Rxc7 {[%clk 0:02:40.7]}
21. Rxc7 {[%clk 0:02:52.1]} 21... Qxc7 {[%clk 0:02:40.3]} 22. Qd2 {[%clk
0:02:51.6]} 22... Qc3 {[%clk 0:01:37.5]} 23. Qxf4 {[%clk 0:02:36.9]} 23... Qxa3
{[%clk 0:01:35.9]} 24. Qxd6 {[%clk 0:02:32.7]} 24... Bc3 {[%clk 0:01:25.4]} 25.
Rf1 {[%clk 0:02:22.2]} 25... Rxe4 {[%clk 0:01:16.6]} 26. Qb8+ {[%clk 0:02:13.3]}
26... Kg7 {[%clk 0:01:14.3]} 27. Qxb7 {[%clk 0:02:12.7]} 27... Rxb4 {[%clk
0:01:11.5]} 28. Qc7 {[%clk 0:02:03]} 28... Rb6 {[%clk 0:00:36.4]} 29. Ng5 {[%clk
0:01:41.8]} 29... Rf6 {[%clk 0:00:35.2]} 30. Ne4 {[%clk 0:01:39.8]} 30... Rxf2
{[%clk 0:00:09.5]} 31. Nxf2 {[%clk 0:01:23.5]} 31... Be5 {[%clk 0:00:02.9]} 32.
Qc4 {[%clk 0:01:16.9]} 1-0

[Event "Live Chess"]
[Site "Chess.com"]
[Date "2023.05.20"]
[Round "-"]
[White "defenderalist"]
[Black "mliszewski"]
[Result "0-1"]
[WhiteElo "1589"]
[BlackElo "1900"]
[TimeControl "300"]
[EndTime "10:48:31 PDT"]
[Termination "mliszewski won by resignation"]

1. e4 {[%clk 0:04:57.9]} 1... c6 {[%clk 0:04:59.1]} 2. Nf3 {[%clk 0:04:55.8]}
2... d5 {[%clk 0:04:59]} 3. d4 {[%clk 0:04:55.3]} 3... dxe4 {[%clk 0:04:58.2]}
4. Ne5 {[%clk 0:04:54.8]} 4... Nf6 {[%clk 0:04:52.6]} 5. Bc4 {[%clk 0:04:52.9]}
5... e6 {[%clk 0:04:49.6]} 6. O-O {[%clk 0:04:51.7]} 6... c5 {[%clk 0:04:48.8]}
7. Bg5 {[%clk 0:04:44.4]} 7... cxd4 {[%clk 0:04:46]} 8. Bxf6 {[%clk 0:04:42.2]}
8... gxf6 {[%clk 0:04:45.1]} 9. Bb5+ {[%clk 0:04:36.9]} 9... Bd7 {[%clk
0:04:42.5]} 10. Bxd7+ {[%clk 0:04:33.6]} 10... Nxd7 {[%clk 0:04:40.6]} 11. Qxd4
{[%clk 0:04:33.1]} 11... fxe5 {[%clk 0:04:36]} 12. Qxe4 {[%clk 0:04:31.3]} 12...
Bg7 {[%clk 0:04:34.3]} 13. f4 {[%clk 0:04:29.2]} 13... exf4 {[%clk 0:04:29.1]}
14. Qxf4 {[%clk 0:04:24.8]} 14... O-O {[%clk 0:04:25.8]} 15. Nd2 {[%clk
0:04:23.5]} 15... Qb6+ {[%clk 0:04:24.3]} 16. Kh1 {[%clk 0:04:20.2]} 16... Qxb2
{[%clk 0:04:20.9]} 17. Rab1 {[%clk 0:04:14.5]} 17... Qe5 {[%clk 0:04:18.7]} 18.
Qg4 {[%clk 0:04:12.3]} 18... b6 {[%clk 0:04:14.2]} 19. Nf3 {[%clk 0:04:10.7]}
19... Qc5 {[%clk 0:04:03.7]} 20. Rbd1 {[%clk 0:03:48.1]} 20... Ne5 {[%clk
0:04:01.6]} 21. Qg3 {[%clk 0:03:38.9]} 21... Nxf3 {[%clk 0:03:58.5]} 22. Rxf3
{[%clk 0:03:37.6]} 22... Qxc2 {[%clk 0:03:54.6]} 23. Rdf1 {[%clk 0:03:35.9]}
23... Qg6 {[%clk 0:03:51.3]} 24. Qf2 {[%clk 0:03:32.9]} 24... Rac8 {[%clk
0:03:48.4]} 25. Rg3 {[%clk 0:03:32]} 25... Qc2 {[%clk 0:03:28.7]} 26. Qf6 {[%clk
0:03:27.7]} 26... Qg6 {[%clk 0:03:08.9]} 27. Rxg6 {[%clk 0:03:23.2]} 27... hxg6
{[%clk 0:03:08.3]} 28. Qe7 {[%clk 0:03:18]} 28... Rce8 {[%clk 0:03:03.4]} 29.
Qxa7 {[%clk 0:03:16.4]} 29... Ra8 {[%clk 0:03:02.5]} 30. Qxb6 {[%clk 0:03:13.5]}
30... Rxa2 {[%clk 0:03:01.4]} 31. h4 {[%clk 0:03:09.9]} 31... Rb2 {[%clk
0:02:55.3]} 32. Qd6 {[%clk 0:03:01.4]} 32... Rfb8 {[%clk 0:02:51.5]} 33. Qd7
{[%clk 0:02:50.9]} 33... R2b7 {[%clk 0:02:48.8]} 34. Qd3 {[%clk 0:02:46.2]}
34... Rb4 {[%clk 0:02:46.9]} 35. g3 {[%clk 0:02:40.5]} 35... Rb3 {[%clk
0:02:44.5]} 36. Qd7 {[%clk 0:02:31]} 36... R8b7 {[%clk 0:02:43.2]} 37. Qe8+
{[%clk 0:02:29.3]} 37... Kh7 {[%clk 0:02:41.4]} 38. Rf3 {[%clk 0:02:28.2]} 38...
Rxf3 {[%clk 0:02:38.4]} 0-1

[Event "Live Chess"]
[Site "Chess.com"]
[Date "2023.05.20"]
[Round "-"]
[White "Davidagye"]
[Black "Bot_Boy"]
[Result "1-0"]
[WhiteElo "1655"]
[BlackElo "325"]
[TimeControl "300"]
[EndTime "10:48:41 PDT"]
[Termination "Davidagye won on time"]

1. e4 {[%clk 0:04:57.6]} 1... c6 {[%clk 0:04:59.9]} 2. d4 {[%clk 0:04:55]} 2...
d5 {[%clk 0:04:56.4]} 3. e5 {[%clk 0:04:53.1]} 3... Bf5 {[%clk 0:04:53.3]} 4. h4
{[%clk 0:04:52.2]} 4... h5 {[%clk 0:04:41.1]} 5. Bd3 {[%clk 0:04:50.4]} 5...
Bxd3 {[%clk 0:04:39.3]} 6. Qxd3 {[%clk 0:04:49.2]} 6... Rh6 {[%clk 0:04:30.2]}
7. Bxh6 {[%clk 0:04:47]} 7... Nxh6 {[%clk 0:04:25.6]} 8. Nf3 {[%clk 0:04:45.8]}
8... g6 {[%clk 0:04:08.7]} 9. e6 {[%clk 0:04:43.9]} 9... Qd6 {[%clk 0:03:52.2]}
10. exf7+ {[%clk 0:04:41.6]} 10... Kxf7 {[%clk 0:03:44.1]} 11. Ne5+ {[%clk
0:04:41]} 11... Kg7 {[%clk 0:03:35.3]} 12. Rh3 {[%clk 0:04:38]} 12... Nf5 {[%clk
0:03:31]} 13. f3 {[%clk 0:04:30.2]} 13... Qe6 {[%clk 0:03:26]} 14. g4 {[%clk
0:04:28.1]} 14... hxg4 {[%clk 0:03:17.7]} 15. fxg4 {[%clk 0:04:26.8]} 15... Nd6
{[%clk 0:03:01.1]} 16. h5 {[%clk 0:04:24.9]} 16... Ne4 {[%clk 0:02:48.5]} 17.
hxg6 {[%clk 0:04:23]} 17... Ng5 {[%clk 0:02:28]} 18. Rh5 {[%clk 0:04:11.7]}
18... Nd7 {[%clk 0:02:10.7]} 19. Rxg5 {[%clk 0:04:07.5]} 19... Nxe5 {[%clk
0:02:02.6]} 20. Rxe5 {[%clk 0:04:05.5]} 20... Qxg4 {[%clk 0:01:51.2]} 21. Nd2
{[%clk 0:04:02.7]} 21... e6 {[%clk 0:01:38.9]} 22. Nf3 {[%clk 0:03:58.7]} 22...
Bd6 {[%clk 0:01:05.2]} 23. O-O-O {[%clk 0:03:56.2]} 23... Bxe5 {[%clk
0:00:54.9]} 24. Nxe5 {[%clk 0:03:53.9]} 24... Qg5+ {[%clk 0:00:30.1]} 25. Kb1
{[%clk 0:03:51.6]} 25... Rf8 {[%clk 0:00:21.2]} 26. Rh1 {[%clk 0:03:48.4]} 26...
Rh8 {[%clk 0:00:14.4]} 27. Qf3 {[%clk 0:03:39.7]} 27... Rxh1+ {[%clk 0:00:11.4]}
28. Qxh1 {[%clk 0:03:38.3]} 28... Qh6 {[%clk 0:00:07]} 29. Qxh6+ {[%clk
0:03:37]} 29... Kxh6 {[%clk 0:00:06.4]} 30. b4 {[%clk 0:03:36.8]} 30... Kg7
{[%clk 0:00:04.7]} 31. a4 {[%clk 0:03:36.1]} 31... a6 {[%clk 0:00:03.2]} 32. b5
{[%clk 0:03:35.5]} 32... axb5 {[%clk 0:00:01.7]} 33. axb5 {[%clk 0:03:35.4]}
33... cxb5 {[%clk 0:00:00.7]} 34. Kb2 {[%clk 0:03:34.9]} 1-0